lending/lending_fUSD_20260124
["ID","MTS","AMOUNT","RATE_DAILY","PERIOD"]
[403192804,1769262643488,-250.0,0.00013864,2]
[403192805,1769262643498,-250.0,0.00013864,2]
[403192806,1769262643507,-250.0,0.00013864,2]
[403192807,1769262643521,-250.0,0.00013864,2]
[403192808,1769262643530,-250.0,0.00013864,2]
[403192809,1769262643539,-250.0,0.00013864,2]
[403192810,1769262643548,-250.0,0.00013864,2]
[403192811,1769262643558,-250.0,0.00013864,2]
[403192812,1769262643568,-9905.5980765,0.00013919,2]
[403192813,1769262643577,-9000.0,0.00013919,2]
[403192814,1769262643589,-1012.28,0.00013972,2]
[403192815,1769262643599,-10272.10520533,0.00013974,2]
[403192816,1769262643608,-9000.0,0.00013974,2]
[403192817,1769262643618,-10652.17309792,0.00014029,2]
[403192818,1769262643627,-9000.0,0.00014029,2]
[403192819,1769262643642,-165.97106181,0.00014045,2]
[403192820,1769262643651,-500.0,0.00014045,2]
[403192821,1769262643662,-9211.34798986,0.00014084,2]
[403192822,1769262643672,-9000.0,0.00014084,2]
[403192823,1769262643683,-169.97246918,0.00014093,2]
[403192824,1769262643693,-500.0,0.00014164,2]
[403192825,1769262643704,-166.66,0.0001422,2]
[403192826,1769262643714,-1012.28,0.00014246,2]
[403192827,1769262643724,-2351.0,0.00014257,2]
[403192828,1769262643733,-500.0,0.00014365,2]
[403192829,1769262643743,-500.0,0.00014365,2]
[403192830,1769262643752,-186862.429039,0.00014366,2]
[403192831,1769262643760,-266.37387715,0.00014405,2]
[403192832,1769262643770,-181.08010149,0.00014412,2]
[403192833,1769262643779,-885.86649465,0.00014412,2]
[403192834,1769262643788,-427.12,0.00014413,2]
[403192835,1769262643798,-13061.83847507,0.00014502,2]
[403192836,1769262643807,-1012.28,0.0001452,2]
[403192837,1769262643816,-150.0,0.00014521,2]
[403192838,1769262643825,-150.0,0.00014521,2]
[403192839,1769262643835,-201.980302,0.00014521,2]
[403192840,1769262643844,-150.0,0.00014521,2]
[403192841,1769262643853,-152.18149603,0.00014521,2]
[403192842,1769262643862,-152.45791979,0.00014521,2]
[403192843,1769262643872,-150.62026844,0.00014521,2]
[403192844,1769262643881,-151.82706047,0.00014521,2]
[403192845,1769262643890,-150.93281041,0.00014521,2]
[403192846,1769262643899,-150.65129016,0.00014521,2]
[403192847,1769262643908,-150.0,0.00014521,2]
[403192848,1769262643918,-150.0,0.00014521,2]
[403192849,1769262643928,-150.0,0.00014521,2]
[403192850,1769262643938,-150.0,0.00014521,2]
[403192851,1769262643947,-500.0,0.00014521,2]
[403192852,1769262643957,-500.0,0.00014521,2]
[403192853,1769262643967,-500.0,0.00014521,2]
[403192854,1769262643976,-150.0,0.00014521,2]
[403192855,1769262643985,-150.0,0.00014521,2]
[403192856,1769262643994,-150.0,0.00014521,2]
[403192857,1769262644003,-225.50315905,0.00014576,2]
[403192858,1769262644013,-200.0,0.00014576,2]
[403192859,1769262644023,-150.0,0.00014576,2]
[403192860,1769262644034,-150.0,0.00014576,2]
[403192861,1769262644043,-500.0,0.00014576,2]
[403192862,1769262644052,-500.0,0.00014576,2]
[403192863,1769262644062,-150.0,0.00014576,2]
[403192864,1769262644073,-500.0,0.00014576,2]
[403192865,1769262644082,-150.0,0.00014576,2]
[403192866,1769262644091,-293.0,0.00014631,2]
[403192867,1769262644100,-200.0,0.00014631,2]
[403192868,1769262644111,-150.0,0.00014631,2]
[403192869,1769262644120,-300.0,0.00014631,2]
[403192870,1769262644131,-150.0,0.00014631,2]
[403192871,1769262644141,-500.0,0.00014631,2]
[403192872,1769262644152,-150.0,0.00014631,2]
[403192873,1769262644161,-166.66,0.00014635,2]
[403192874,1769262644171,-203.21260792,0.00014685,2]
[403192875,1769262644180,-350.0,0.00014685,2]
[403192876,1769262644189,-150.0,0.00014685,2]
[403192877,1769262644199,-150.0,0.0001474,2]
[403192878,1769262644209,-274.65587119,0.00014765,2]
[403192879,1769262644218,-1012.28,0.00014794,2]
[403192880,1769262644227,-232.13655039,0.00014795,2]
[403192881,1769262644237,-457.09279657,0.00014842,2]
[403192882,1769262644246,-7192.56536965,0.00014843,2]
[403192883,1769262644256,-10759.64763391,0.00014843,2]
[403192884,1769262644265,-14558.1777,0.00014843,2]
[403192885,1769262644275,-187.78006525,0.0001496,2]
[403192886,1769262644284,-169.58027881,0.00014978,2]
[403192887,1769262644294,-500.0,0.00014978,2]
[403192888,1769262644304,-242.59297938,0.00015,2]
[403192889,1769262644313,-1012.28,0.00015068,2]
[403192890,1769262644323,-427.12,0.00015068,2]
[403192891,1769262644332,-2423.1177595,0.00015077,2]
[403192892,1769262644341,-151.0,0.00015088,2]
[403192893,1769262644351,-151.0,0.00015098,2]
[403192894,1769262644361,-13061.83847507,0.00015182,2]
[403192895,1769262644371,-151.0,0.00015221,2]
[403192896,1769262644380,-151.0,0.00015228,2]
[403192897,1769262644389,-334.5472959,0.00015233,2]
[403192898,1769262644398,-266.37387715,0.00015279,2]
[403192899,1769262644407,-1012.28,0.00015342,2]
[403192900,1769262644416,-150.0,0.000154,2]
[403192901,1769262644425,-194.72792766,0.00015508,2]
[403192902,1769262644434,-3339.2211108,0.00015583,2]
[403192903,1769262644443,-500.0,0.00015606,2]
[403192904,1769262644452,-186862.429039,0.00015606,2]
[403192905,1769262644462,-1012.28,0.00015616,2]
[403192906,1769262644472,-3292.0,0.00015683,2]
[403192907,1769262644481,-250.0,0.00015702,2]
[403192908,1769262644491,-500.0,0.00015715,2]
[403192909,1769262644499,-16649.18,0.00015716,2]
[403192910,1769262644510,-427.12,0.00015724,2]
[403192911,1769262644522,-324.33,0.0001579,2]
[403192912,1769262644532,-457.09279657,0.00015861,2]
[403192913,1769262644541,-13061.83847507,0.00015861,2]
[403192914,1769262644551,-292.86388149,0.00015873,2]
[403192915,1769262644782,-502.29589006,0.00015873,2]
[403192916,1769262644802,-500.0,0.00015873,2]
[403192917,1769262644811,-500.0,0.00015873,2]
[403192918,1769262644819,-502.78879497,0.00015873,2]
[403192919,1769262644829,-500.0,0.00015873,2]
[403192920,1769262644838,-500.0,0.00015873,2]
[403192921,1769262644847,-500.0,0.00015873,2]
[403192922,1769262644855,-500.0,0.00015873,2]
[403192923,1769262644864,-500.0,0.00015873,2]
[403192924,1769262644874,-613.07928255,0.00015873,2]
[403192925,1769262644883,-500.0,0.00015873,2]
[403192926,1769262644892,-500.0,0.00015873,2]
[403192927,1769262644900,-500.0,0.00015873,2]
[403192928,1769262644910,-500.0,0.00015873,2]
[403192929,1769262644918,-344.27510642,0.00015873,2]
[403192930,1769262644927,-500.0,0.00015873,2]
[403192931,1769262644936,-500.0,0.00015873,2]
[403192932,1769262644945,-502.47348302,0.00015873,2]
[403192933,1769262644955,-501.64063566,0.00015873,2]
[403192934,1769262644964,-500.0,0.00015873,2]
[403192935,1769262644974,-500.0,0.00015873,2]
[403192936,1769262644984,-500.0,0.00015873,2]
[403192937,1769262644993,-500.0,0.00015873,2]
[403192938,1769262645003,-507.95507628,0.00015873,2]
[403192939,1769262645014,-500.0,0.00015873,2]
[403192940,1769262645024,-1012.28,0.0001589,2]
[403192941,1769262645034,-500.0,0.00015894,2]
[403192942,1769262645043,-398.32,0.00015924,2]
[403192943,1769262645052,-183.59,0.00015924,2]
[403192944,1769262645061,-233.57,0.00015964,2]
[403192945,1769262645071,-3339.22111077,0.00016046,2]
[403192946,1769262645081,-201.93286099,0.00016056,2]
[403192947,1769262645090,-560.21,0.00016096,2]
[403192948,1769262645100,-159.59843399,0.00016134,2]
[403192949,1769262645109,-266.37387715,0.00016153,2]
[403192950,1769262645119,-1012.28,0.00016164,2]
[403192951,1769262645128,-1000.0,0.00016225,2]
[403192952,1769262645139,-183.57871706,0.00016312,2]
[403192953,1769262645148,-152.0,0.00016313,3]
[403192954,1769262645158,-867.75,0.00016322,2]
[403192955,1769262645167,-334.39760322,0.00016346,2]
[403192956,1769262645177,-500.0,0.00016356,2]
[403192957,1769262645186,-500.0,0.00016356,2]
[403192958,1769262645195,-560.21,0.0001637,2]
[403192959,1769262645205,-427.12,0.00016379,2]
[403192960,1769262645214,-1000.0,0.00016419,2]
[403192961,1769262645224,-1000.0,0.00016421,2]
[403192962,1769262645233,-502.45143879,0.00016421,2]
[403192963,1769262645243,-1000.0,0.00016421,2]
[403192964,1769262645252,-1000.0,0.00016421,2]
[403192965,1769262645262,-1000.0,0.00016421,2]
[403192966,1769262645272,-1000.0,0.00016421,2]
[403192967,1769262645282,-1000.0,0.00016421,2]
[403192968,1769262645292,-176.74718944,0.00016421,2]
[403192969,1769262645301,-1000.0,0.00016421,2]
[403192970,1769262645310,-1000.0,0.00016421,2]
[403192971,1769262645319,-1000.0,0.00016421,2]
[403192972,1769262645329,-1019.79945563,0.00016421,2]
[403192973,1769262645338,-1000.0,0.00016421,2]
[403192974,1769262645347,-502.17327714,0.00016421,2]
[403192975,1769262645357,-1000.0,0.00016421,2]
[403192976,1769262645367,-1000.0,0.00016421,2]
[403192977,1769262645377,-1000.0,0.00016421,2]
[403192978,1769262645387,-1000.0,0.00016421,2]
[403192979,1769262645396,-500.0,0.00016438,2]
[403192980,1769262645405,-500.0,0.00016438,2]
[403192981,1769262645414,-500.0,0.00016438,2]
[403192982,1769262645422,-500.0,0.00016438,2]
[403192983,1769262645432,-500.0,0.00016438,2]
[403192984,1769262645441,-500.0,0.00016438,2]
[403192985,1769262645449,-500.0,0.00016438,2]
[403192986,1769262645459,-500.0,0.00016438,2]
[403192987,1769262645467,-500.0,0.00016438,2]
[403192988,1769262645477,-500.0,0.00016438,2]
[403192989,1769262645486,-500.0,0.00016438,2]
[403192990,1769262645495,-500.0,0.00016438,2]
[403192991,1769262645504,-500.0,0.00016438,2]
[403192992,1769262645517,-500.0,0.00016438,2]
[403192993,1769262645526,-500.0,0.00016438,2]
[403192994,1769262645535,-162.02547009,0.00016438,2]
[403192995,1769262645544,-300.0,0.00016438,2]
[403192996,1769262645554,-300.0,0.00016438,2]
[403192997,1769262645563,-300.0,0.00016438,2]
[403192998,1769262645572,-300.0,0.00016438,2]
[403192999,1769262645581,-300.0,0.00016438,2]
[403193000,1769262645591,-300.0,0.00016438,2]
[403193001,1769262645601,-300.0,0.00016438,2]
[403193002,1769262645610,-300.0,0.00016438,2]
[403193003,1769262645619,-300.0,0.00016438,2]
[403193004,1769262645628,-380.48629979,0.00016438,2]
[403193005,1769262645637,-375.37,0.00016438,2]
[403193006,1769262645646,-375.37,0.00016438,2]
[403193007,1769262645655,-375.37,0.00016438,2]
[403193008,1769262645664,-375.37,0.00016438,2]
[403193009,1769262645673,-375.37,0.00016438,2]
[403193010,1769262645683,-375.37,0.00016438,2]
[403193011,1769262645692,-375.37,0.00016438,2]
[403193012,1769262645701,-375.37,0.00016438,2]
[403193013,1769262645710,-375.37,0.00016438,2]
[403193014,1769262645720,-375.37,0.00016438,2]
[403193015,1769262645729,-375.37,0.00016438,2]
[403193016,1769262645739,-375.37,0.00016438,2]
[403193017,1769262645748,-375.37,0.00016438,2]
[403193018,1769262645756,-375.37,0.00016438,2]
[403193019,1769262645766,-375.37,0.00016438,2]
[403193020,1769262645775,-375.37,0.00016438,2]
[403193021,1769262645784,-375.37,0.00016438,2]
[403193022,1769262645793,-375.37,0.00016438,2]
[403193023,1769262645804,-375.37,0.00016438,2]
[403193024,1769262645814,-375.37,0.00016438,2]
[403193025,1769262645823,-375.37,0.00016438,2]
[403193026,1769262645832,-375.37,0.00016438,2]
[403193027,1769262645843,-375.37,0.00016438,2]
[403193028,1769262645852,-375.4227433,0.00016438,2]
[403193029,1769262645862,-548.46,0.00016438,2]
[403193030,1769262645871,-548.46,0.00016438,2]
[403193031,1769262645879,-548.46,0.00016438,2]
[403193032,1769262645889,-548.46,0.00016438,2]
[403193033,1769262645898,-548.46,0.00016438,2]
[403193035,1769262645907,-548.46,0.00016438,2]
[403193036,1769262645917,-548.46,0.00016438,2]
[403193037,1769262645926,-548.46,0.00016438,2]
[403193038,1769262645935,-548.46,0.00016438,2]
[403193039,1769262645944,-548.46,0.00016438,2]
[403193041,1769262645955,-548.46,0.00016438,2]
[403193043,1769262645964,-548.46,0.00016438,2]
[403193045,1769262645974,-548.46,0.00016438,2]
[403193047,1769262645985,-548.46,0.00016438,2]
[403193049,1769262645994,-548.46,0.00016438,2]
[403193050,1769262646003,-548.46,0.00016438,2]
[403193051,1769262646013,-548.46,0.00016438,2]
[403193052,1769262646024,-548.46,0.00016438,2]
[403193053,1769262646034,-548.46,0.00016438,2]
[403193055,1769262646043,-548.46,0.00016438,2]
[403193057,1769262646053,-548.46,0.00016438,2]
[403193059,1769262646063,-548.46,0.00016438,2]
[403193061,1769262646072,-548.46,0.00016438,2]
[403193063,1769262646083,-548.67,0.00016438,2]
[403193065,1769262646092,-1012.28,0.00016438,2]
[403193067,1769262646102,-3012.0,0.00016438,2]
[403193069,1769262646112,-800.0,0.00016438,2]
[403193071,1769262646121,-151.0,0.00016438,2]
[403193073,1769262646131,-1000.0,0.00016454,2]
[403193075,1769262646140,-3339.22111077,0.0001651,2]
[403193077,1769262646150,-503.0,0.00016575,2]
[403193079,1769262646159,-867.75,0.00016595,2]
[403193081,1769262646170,-346.92554585,0.00016602,2]
[403193083,1769262646185,-599.60298507,0.00016603,2]
[403193085,1769262646195,-233.89856902,0.00016603,2]
[403193087,1769262646205,-209.40437684,0.00016604,2]
[403193089,1769262646215,-560.21,0.00016644,2]
[403193091,1769262646225,-2423.1177595,0.00016674,2]
[403193093,1769262646234,-174.88782971,0.00016697,2]
[403193095,1769262646245,-1012.34780531,0.00016712,2]
[403193097,1769262646254,-1000.0,0.00016722,2]
[403193099,1769262646264,-1000.0,0.00016806,2]
[403193101,1769262646273,-1000.0,0.00016833,2]
[403193103,1769262646283,-1000.0,0.00016847,2]
[403193105,1769262646292,-500.0,0.00016862,2]
[403193107,1769262646302,-867.75,0.00016869,2]
[403193109,1769262646312,-398.32,0.00016871,2]
[403193111,1769262646321,-183.59,0.00016871,2]
[403193113,1769262646330,-457.09279657,0.00016881,2]
[403193114,1769262646340,-3552.7,0.00016889,2]
[403193116,1769262646349,-233.57,0.00016915,2]
[403193118,1769262646359,-200.0,0.00016916,2]
[403193121,1769262646369,-560.21,0.00016918,2]
[403193123,1769262646379,-500.0,0.00016968,2]
[403193125,1769262646388,-1500.0,0.00016968,2]
[403193127,1769262646397,-1605.8055645,0.00016968,2]
[403193128,1769262646407,-1500.0,0.00016968,2]
[403193129,1769262646416,-1073.98879249,0.00016968,2]
[403193130,1769262646426,-1508.65885814,0.00016968,2]
[403193132,1769262646435,-348.0638206,0.00016968,2]
[403193134,1769262646444,-1500.0,0.00016968,2]
[403193135,1769262646453,-1500.0,0.00016968,2]
[403193137,1769262646462,-1500.0,0.00016968,2]
[403193139,1769262646471,-1500.0,0.00016968,2]
[403193142,1769262646481,-1500.0,0.00016968,2]
[403193144,1769262646491,-1500.0,0.00016968,2]
[403193145,1769262646500,-1500.0,0.00016968,2]
[403193148,1769262646512,-409.91910471,0.00016968,2]
[403193150,1769262646522,-3339.22111077,0.00016973,2]
[403193152,1769262646531,-1000.0,0.00016974,2]
[403193153,1769262646540,-1000.0,0.00016988,2]
[403193155,1769262646550,-3552.7,0.0001699,2]
[403193158,1769262646559,-1837.9390393,0.00016994,2]
[403193160,1769262646569,-250.0,0.00017,2]
[403193162,1769262646578,-3207.48934641,0.00017,2]
[403193163,1769262646587,-266.37387715,0.00017026,2]
[403193166,1769262646597,-159.59843399,0.0001703,2]
[403193168,1769262646606,-427.12,0.00017034,2]
[403193169,1769262646616,-1000.0,0.00017057,2]
[403193172,1769262646626,-4236.06670475,0.00017072,2]
[403193174,1769262646635,-3552.7,0.00017091,2]
[403193176,1769262646644,-1000.0,0.000171,2]
[403193177,1769262646654,-867.75,0.00017143,2]
[403193178,1769262646663,-217.15233878,0.00017152,2]
[403193179,1769262646672,-1000.0,0.00017182,2]
[403193180,1769262646681,-3552.7,0.00017192,2]
[403193181,1769262646690,-560.21,0.00017192,2]
[403193182,1769262646699,-1673.0,0.00017207,2]
[403193183,1769262646709,-1000.0,0.00017216,2]
[403193184,1769262646718,-4609.0,0.00017251,2]
[403193185,1769262646727,-1000.0,0.00017258,2]
[403193186,1769262646736,-3149.27560019,0.0001726,2]
[403193187,1769262646745,-3222.13393013,0.0001726,2]
[403193188,1769262646754,-200.0,0.0001726,2]
[403193189,1769262646767,-200.0,0.0001726,2]
[403193190,1769262646777,-200.0,0.0001726,2]
[403193191,1769262646786,-200.0,0.0001726,2]
[403193192,1769262646795,-800.0,0.0001726,2]
[403193193,1769262646804,-800.0,0.0001726,2]
[403193194,1769262646813,-800.0,0.0001726,2]
[403193195,1769262646822,-800.0,0.0001726,2]
[403193196,1769262646832,-800.0,0.0001726,2]
[403193197,1769262646841,-800.0,0.0001726,2]
[403193198,1769262646851,-800.0,0.0001726,2]
[403193199,1769262646860,-800.0,0.0001726,2]
[403193200,1769262646869,-800.0,0.0001726,2]
[403193201,1769262646879,-800.0,0.0001726,2]
[403193202,1769262646888,-800.0,0.0001726,2]
[403193203,1769262646898,-800.0,0.0001726,2]
[403193204,1769262646908,-800.0,0.0001726,2]
[403193205,1769262646917,-800.0,0.0001726,2]
[403193206,1769262646927,-800.0,0.0001726,2]
[403193207,1769262646937,-800.0,0.0001726,2]
[403193208,1769262646946,-800.0,0.0001726,2]
[403193209,1769262646955,-800.0,0.0001726,2]
[403193210,1769262646965,-800.0,0.0001726,2]
[403193211,1769262646974,-800.0,0.0001726,2]
[403193212,1769262646984,-800.0,0.0001726,2]
[403193213,1769262646994,-800.0,0.0001726,2]
[403193214,1769262647003,-800.0,0.0001726,2]
[403193215,1769262647013,-800.0,0.0001726,2]
[403193216,1769262647022,-800.0,0.0001726,2]
[403193217,1769262647031,-800.0,0.0001726,2]
[403193218,1769262647042,-800.0,0.0001726,2]
[403193219,1769262647052,-800.0,0.0001726,2]
[403193220,1769262647062,-800.0,0.0001726,2]
[403193221,1769262647072,-800.0,0.0001726,2]
[403193222,1769262647081,-800.0,0.0001726,2]
[403193223,1769262647091,-800.0,0.0001726,2]
[403193224,1769262647100,-800.0,0.0001726,2]
[403193225,1769262647109,-800.0,0.0001726,2]
[403193226,1769262647118,-800.0,0.0001726,2]
[403193227,1769262647128,-800.0,0.0001726,2]
[403193228,1769262647137,-800.0,0.0001726,2]
[403193229,1769262647147,-800.0,0.0001726,2]
[403193230,1769262647157,-800.0,0.0001726,2]
[403193231,1769262647166,-800.0,0.0001726,2]
[403193232,1769262647175,-800.0,0.0001726,2]
[403193233,1769262647184,-800.0,0.0001726,2]
[403193234,1769262647194,-800.0,0.0001726,2]
[403193235,1769262647203,-800.0,0.0001726,2]
[403193236,1769262647213,-800.0,0.0001726,2]
[403193237,1769262647222,-800.0,0.0001726,2]
[403193238,1769262647231,-418.0,0.0001726,2]
[403193239,1769262647241,-500.0,0.0001726,2]
[403193240,1769262647250,-617.0,0.0001726,2]
[403193241,1769262647259,-200.0,0.0001726,2]
[403193242,1769262647269,-200.0,0.0001726,2]
[403193243,1769262647279,-200.0,0.0001726,2]
[403193244,1769262647288,-200.0,0.0001726,2]
[403193245,1769262647297,-200.0,0.0001726,2]
[403193246,1769262647307,-200.0,0.0001726,2]
[403193247,1769262647325,-200.0,0.0001726,2]
[403193248,1769262647336,-200.0,0.0001726,2]
[403193249,1769262647345,-200.0,0.0001726,2]
[403193250,1769262647354,-200.0,0.0001726,2]
[403193251,1769262647364,-200.0,0.0001726,2]
[403193252,1769262647374,-200.0,0.0001726,2]
[403193253,1769262647383,-200.0,0.0001726,2]
[403193254,1769262647393,-200.0,0.0001726,2]
[403193255,1769262647402,-200.0,0.0001726,2]
[403193256,1769262647412,-200.0,0.0001726,2]
[403193257,1769262647421,-200.0,0.0001726,2]
[403193258,1769262647429,-200.0,0.0001726,2]
[403193259,1769262647439,-200.0,0.0001726,2]
[403193260,1769262647449,-200.0,0.0001726,2]
[403193261,1769262647458,-200.0,0.0001726,2]
[403193262,1769262647468,-200.0,0.0001726,2]
[403193263,1769262647477,-200.0,0.0001726,2]
[403193264,1769262647492,-200.0,0.0001726,2]
[403193265,1769262647501,-200.0,0.0001726,2]
[403193266,1769262647514,-200.0,0.0001726,2]
[403193267,1769262647523,-200.0,0.0001726,2]
[403193268,1769262647532,-200.0,0.0001726,2]
[403193269,1769262647542,-200.0,0.0001726,2]
[403193270,1769262647553,-200.0,0.0001726,2]
[403193271,1769262647562,-200.0,0.0001726,2]
[403193272,1769262647571,-200.0,0.0001726,2]
[403193273,1769262647580,-188.0,0.0001726,2]
[403193274,1769262647592,-834.0,0.0001726,2]
[403193275,1769262647601,-1170.0,0.00017281,2]
[403193276,1769262647610,-3552.7,0.00017293,2]
[403193277,1769262647619,-153.7074367,0.00017302,2]
[403193278,1769262647629,-1170.0,0.00017318,2]
[403193279,1769262647638,-857.0,0.0001736,2]
[403193280,1769262647648,-393.45440139,0.0001738,2]
[403193281,1769262647657,-3552.7,0.00017394,2]
[403193282,1769262647667,-1000.0,0.000174,2]
[403193283,1769262647676,-867.75,0.00017417,2]
[403193284,1769262647685,-1000.0,0.00017426,2]
[403193285,1769262647694,-3339.22111077,0.00017437,2]
[403193286,1769262647703,-1000.0,0.00017441,2]
[403193287,1769262647713,-560.21,0.00017466,2]
[403193288,1769262647722,-1170.0,0.00017469,2]
[403193289,1769262647731,-3552.7,0.00017495,2]
[403193290,1769262647741,-1000.0,0.0001751,2]
[403193291,1769262647751,-500.0,0.00017516,2]
[403193292,1769262647760,-2000.0,0.00017516,2]
[403193293,1769262647769,-1046.22489308,0.00017516,2]
[403193294,1769262647778,-2000.0,0.00017516,2]
[403193295,1769262647787,-2000.0,0.00017516,2]
[403193296,1769262647796,-2000.0,0.00017516,2]
[403193297,1769262647805,-2000.0,0.00017516,2]
[403193298,1769262647815,-2000.0,0.00017516,2]
[403193299,1769262647824,-2000.0,0.00017516,2]
[403193300,1769262647833,-2000.0,0.00017516,2]
[403193301,1769262647843,-1000.0,0.00017534,2]
[403193302,1769262647851,-1012.56209321,0.00017534,2]
[403193303,1769262647861,-150.0,0.00017536,2]
[403193304,1769262647870,-1170.0,0.00017576,2]
[403193305,1769262647879,-3552.7,0.00017596,2]
[403193306,1769262647888,-200.0,0.000176,2]
[403193307,1769262647898,-200.0,0.000176,2]
[403193308,1769262647908,-200.0,0.000176,2]
[403193309,1769262647918,-5404.10438685,0.0001764,2]
[403193310,1769262647927,-500.0,0.00017644,2]
[403193311,1769262647937,-150.0,0.00017644,2]
[403193312,1769262647948,-500.0,0.00017644,2]
[403193313,1769262647958,-150.0,0.00017644,2]
[403193314,1769262647968,-150.0,0.00017644,2]
[403193315,1769262647977,-252.63713623,0.00017644,2]
[403193316,1769262647986,-500.0,0.00017644,2]
[403193317,1769262647996,-150.0,0.00017647,2]
[403193318,1769262648005,-172.8753019,0.00017667,2]
[403193319,1769262648014,-1000.0,0.00017669,2]
[403193320,1769262648023,-500.0,0.00017671,2]
[403193321,1769262648032,-150.0,0.00017673,2]
[403193322,1769262648042,-427.12,0.00017689,2]
[403193323,1769262648051,-785.68,0.00017691,2]
[403193324,1769262648059,-3552.7,0.00017697,2]
[403193325,1769262648068,-500.0,0.00017699,2]
[403193326,1769262648078,-164.21135863,0.00017699,2]
[403193327,1769262648087,-500.0,0.00017699,2]
[403193328,1769262648095,-150.0,0.00017699,2]
[403193329,1769262648105,-150.0,0.00017699,2]
[403193330,1769262648115,-500.0,0.00017699,2]
[403193331,1769262648123,-264.76889761,0.000177,2]
[403193332,1769262648132,-10000.0,0.000177,2]
[403193333,1769262648141,-1000.0,0.000177,2]
[403193334,1769262648150,-200.0,0.00017703,2]
[403193335,1769262648160,-150.0,0.00017722,2]
[403193336,1769262648169,-929.63069455,0.0001773,2]
[403193337,1769262648179,-560.21,0.0001774,2]
[403193338,1769262648188,-500.0,0.00017754,2]
[403193339,1769262648197,-500.0,0.00017754,2]
[403193340,1769262648207,-200.0,0.00017754,2]
[403193341,1769262648217,-200.0,0.00017754,2]
[403193342,1769262648226,-500.0,0.00017754,2]
[403193343,1769262648236,-150.0,0.00017769,2]
[403193344,1769262648245,-1000.0,0.00017774,2]
[403193345,1769262648255,-200.0,0.00017776,2]
[403193346,1769262648264,-200.0,0.00017776,2]
[403193347,1769262648273,-200.0,0.00017776,2]
[403193348,1769262648282,-3552.7,0.00017798,2]
[403193349,1769262648292,-500.0,0.00017808,2]
[403193350,1769262648301,-1000.0,0.00017808,2]
[403193351,1769262648310,-500.0,0.00017808,2]
[403193352,1769262648321,-450.0,0.00017808,2]
[403193353,1769262648331,-150.0,0.00017817,2]
[403193354,1769262648340,-231.38369303,0.0001782,2]
[403193355,1769262648350,-1265.0,0.00017822,2]
[403193356,1769262648359,-1265.0,0.00017822,2]
[403193357,1769262648368,-1265.0,0.00017822,2]
[403193358,1769262648378,-151.0,0.00017822,2]
[403193359,1769262648387,-151.0,0.00017822,2]
[403193360,1769262648396,-151.0,0.00017822,2]
[403193361,1769262648405,-151.0,0.00017822,2]
[403193362,1769262648415,-151.0,0.00017822,2]
[403193363,1769262648424,-151.0,0.00017822,2]
[403193364,1769262648433,-151.0,0.00017822,2]
[403193365,1769262648443,-151.0,0.00017822,2]
[403193366,1769262648451,-151.0,0.00017822,2]
[403193367,1769262648461,-151.0,0.00017822,2]
[403193368,1769262648470,-151.0,0.00017822,2]
[403193369,1769262648479,-151.0,0.00017822,2]